[Event "Open Cappelle-la-Grande"]
[Date "2025.02.18"]
[White "Bauer, Christian"]
[Black "Liu, Casper"]
[WhiteElo "2548"]
[BlackElo "2271"]
[Round "5.5.8"]
[Result "1-0"]
[TimeControl "40/5400+30:1800+30"]

1. e4 {[%clk 1:27:41]} 1... c5 {[%clk 1:30:54]} 2. Nf3 {[%clk 1:27:23]} 2... d6
{[%clk 1:31:11]} 3. Bc4 {[%clk 1:27:39]} 3... Nf6 {[%clk 1:31:22]} 4. d3 {[%clk
1:28:04]} 4... Nc6 {[%clk 1:31:41]} 5. c3 {[%clk 1:28:17]} 5... g6 {[%clk
1:32:07]} 6. Bb3 {[%clk 1:28:25]} 6... Bg7 {[%clk 1:32:21]} 7. O-O {[%clk
1:28:49]} 7... O-O {[%clk 1:32:42]} 8. h3 {[%clk 1:28:47]} 8... b5 {[%clk
1:32:39]} 9. a3 {[%clk 1:27:55]} 9... a5 {[%clk 1:25:54]} 10. d4 {[%clk
1:24:28]} 10... Bb7 {[%clk 1:25:57]} 11. Re1 {[%clk 1:13:54]} 11... Nd7 {[%clk
1:24:44]} 12. Be3 {[%clk 1:09:38]} 12... b4 {[%clk 1:20:57]} 13. Nbd2 {[%clk
1:05:34]} 13... bxc3 {[%clk 1:17:37]} 14. bxc3 {[%clk 1:06:03]} 14... cxd4
{[%clk 1:17:59]} 15. cxd4 {[%clk 1:06:28]} 15... Ba6 {[%clk 0:55:48]} 16. Rc1
{[%clk 0:53:24]} 16... Rc8 {[%clk 0:55:26]} 17. Ba4 {[%clk 0:53:01]} 17... Ncb8
{[%clk 0:45:32]} 18. Qb3 {[%clk 0:48:38]} 18... Qb6 {[%clk 0:40:12]} 19. Qa2
{[%clk 0:46:21]} 19... Qb7 {[%clk 0:38:15]} 20. Bb3 {[%clk 0:37:47]} 20... Nb6
{[%clk 0:32:39]} 21. Rxc8 {[%clk 0:33:31]} 21... Qxc8 {[%clk 0:33:03]} 22. Ng5
{[%clk 0:33:03]} 22... Qe8 {[%clk 0:33:22]} 23. Rb1 {[%clk 0:31:49]} 23... N8d7
{[%clk 0:33:07]} 24. e5 {[%clk 0:31:07]} 24... e6 {[%clk 0:30:44]} 25. Nxf7
{[%clk 0:21:11]} 25... Rxf7 {[%clk 0:29:15]} 26. Bxe6 {[%clk 0:21:40]} 26... d5
{[%clk 0:26:56]} 27. Bxd5 {[%clk 0:22:06]} 27... Nxd5 {[%clk 0:27:20]} 28. Qxd5
{[%clk 0:22:33]} 28... Nf8 {[%clk 0:27:02]} 29. Rb6 {[%clk 0:14:13]} 29... Qc8
{[%clk 0:24:41]} 30. Ne4 {[%clk 0:10:44]} 30... Bb7 {[%clk 0:23:22]} 31. Qxf7+
{[%clk 0:10:59]} 31... Kxf7 {[%clk 0:22:35]} 32. Nd6+ {[%clk 0:11:24]} 32... Kg8
{[%clk 0:21:07]} 33. Nxc8 {[%clk 0:11:51]} 33... Bxc8 {[%clk 0:21:35]} 34. Bd2
{[%clk 0:11:09]} 34... a4 {[%clk 0:21:39]} 35. Bc3 {[%clk 0:08:54]} 35... Be6
{[%clk 0:21:05]} 36. Rd6 {[%clk 0:09:05]} 36... Bb3 {[%clk 0:18:42]} 37. d5
{[%clk 0:09:19]} 37... Kf7 {[%clk 0:19:08]} 38. e6+ {[%clk 0:05:15]} 38... Ke7
{[%clk 0:19:36]} 39. Bxg7 {[%clk 0:05:36]} 39... Kxd6 {[%clk 0:20:03]} 40. Bxf8+
{[%clk 0:05:59]} 40... Kc7 {[%clk 0:20:30]} 41. d6+ {[%clk 0:06:11]} 41... Kc8
{[%clk 0:20:23]} 42. e7 {[%clk 0:06:31]} 42... Kd7 {[%clk 0:20:47]} 43. Bh6
{[%clk 0:06:09]} 43... Bf7 {[%clk 0:21:01]} 44. Bf4 {[%clk 0:06:35]} 44... Ke6
{[%clk 0:21:26]} 45. f3 {[%clk 0:06:08]} 45... Be8 {[%clk 0:21:52]} 46. Kf2
{[%clk 0:04:26]} 46... Bb5 {[%clk 0:19:37]} 47. g4 {[%clk 0:03:48]} 47... Kd5
{[%clk 0:17:41]} 48. Kg3 {[%clk 0:02:52]} 48... Ke6 {[%clk 0:16:44]} 49. Kh4
{[%clk 0:01:00]} 49... Kf7 {[%clk 0:16:32]} 50. Kg5 {[%clk 0:00:52]} 50... Bc6
{[%clk 0:13:26]} 51. Kh6 {[%clk 0:01:16]} 51... Bxf3 {[%clk 0:12:19]} 52. Bg5
{[%clk 0:01:12]} 52... Bc6 {[%clk 0:12:09]} 53. Kxh7 {[%clk 0:01:37]} 53... Bd7
{[%clk 0:12:32]} 54. Kh6 {[%clk 0:01:33]} 54... Be8 {[%clk 0:12:57]} 55. h4
{[%clk 0:01:17]} 55... Ke6 {[%clk 0:12:38]} 56. Kg7 {[%clk 0:01:07]} 56... Kxd6
{[%clk 0:12:54]} 57. Kf8 {[%clk 0:01:32]} 57... Kd7 {[%clk 0:13:19]} 58. Bd2
{[%clk 0:01:43]} 1-0

[Variant "Standard"]
[Site "Europe Echecs"]

[Event "Open Cappelle-la-Grande"]
[Date "2025.02.18"]
[White "Raja Rithvik R"]
[Black "Daeschler, Florian"]
[WhiteElo "2522"]
[BlackElo "2258"]
[Round "5.5.9"]
[Result "1-0"]
[TimeControl "40/5400+30:1800+30"]

1. d4 {[%clk 1:30:51]} 1... d5 {[%clk 1:30:52]} 2. c4 {[%clk 1:31:17]} 2... e6
{[%clk 1:31:15]} 3. Nc3 {[%clk 1:31:44]} 3... Nf6 {[%clk 1:31:36]} 4. cxd5
{[%clk 1:32:10]} 4... exd5 {[%clk 1:32:02]} 5. Bg5 {[%clk 1:32:36]} 5... c6
{[%clk 1:32:26]} 6. e3 {[%clk 1:33:03]} 6... Be7 {[%clk 1:32:49]} 7. Bd3 {[%clk
1:33:24]} 7... Nbd7 {[%clk 1:33:13]} 8. h3 {[%clk 1:33:42]} 8... h6 {[%clk
1:32:46]} 9. Bf4 {[%clk 1:34:06]} 9... Nb6 {[%clk 1:32:56]} 10. Nf3 {[%clk
1:34:03]} 10... Be6 {[%clk 1:33:06]} 11. O-O {[%clk 1:33:42]} 11... O-O {[%clk
1:33:25]} 12. Qe2 {[%clk 1:34:07]} 12... Rc8 {[%clk 1:32:24]} 13. Rac1 {[%clk
1:34:28]} 13... a6 {[%clk 1:28:20]} 14. Bg3 {[%clk 1:28:57]} 14... Re8 {[%clk
1:20:47]} 15. Ne5 {[%clk 1:18:55]} 15... c5 {[%clk 1:20:24]} 16. f4 {[%clk
1:19:09]} 16... Ne4 {[%clk 1:07:22]} 17. Bxe4 {[%clk 1:06:53]} 17... dxe4 {[%clk
1:06:56]} 18. Rcd1 {[%clk 1:05:25]} 18... c4 {[%clk 0:45:40]} 19. Nxe4 {[%clk
0:58:04]} 19... f6 {[%clk 0:43:18]} 20. f5 {[%clk 0:48:00]} 20... Bd5 {[%clk
0:42:09]} 21. Nc3 {[%clk 0:48:27]} 21... fxe5 {[%clk 0:24:09]} 22. dxe5 {[%clk
0:48:49]} 22... Bc5 {[%clk 0:19:16]} 23. Kh2 {[%clk 0:48:12]} 23... Bb4 {[%clk
0:11:23]} 24. Nxd5 {[%clk 0:47:09]} 24... Nxd5 {[%clk 0:11:34]} 25. e4 {[%clk
0:46:05]} 25... c3 {[%clk 0:09:18]} 26. Rxd5 {[%clk 0:46:31]} 26... Qe7 {[%clk
0:08:07]} 27. bxc3 {[%clk 0:46:37]} 27... Bxc3 {[%clk 0:08:33]} 28. e6 {[%clk
0:46:42]} 28... b5 {[%clk 0:08:23]} 29. Rd7 {[%clk 0:46:33]} 29... Qb4 {[%clk
0:08:15]} 30. f6 {[%clk 0:45:53]} 30... Rxe6 {[%clk 0:08:37]} 31. Qg4 {[%clk
0:46:03]} 1-0

[Variant "Standard"]
[Site "Europe Echecs"]

[Event "Open Cappelle-la-Grande"]
[Date "2025.02.18"]
[White "Kurmangaliyeva, Liya"]
[Black "Boyer, Mahel"]
[WhiteElo "2251"]
[BlackElo "2509"]
[Round "5.5.10"]
[Result "0-1"]
[TimeControl "40/5400+30:1800+30"]

1. e4 {[%clk 1:30:49]} 1... Nc6 {[%clk 1:30:03]} 2. Nf3 {[%clk 1:30:52]} 2... d6
{[%clk 1:30:25]} 3. d4 {[%clk 1:30:54]} 3... Nf6 {[%clk 1:30:50]} 4. Nc3 {[%clk
1:30:53]} 4... e6 {[%clk 1:31:13]} 5. Qe2 {[%clk 1:27:23]} 5... e5 {[%clk
1:26:03]} 6. Be3 {[%clk 1:01:07]} 6... Bg4 {[%clk 1:23:40]} 7. dxe5 {[%clk
0:52:23]} 7... dxe5 {[%clk 1:23:08]} 8. Rd1 {[%clk 0:52:45]} 8... Qc8 {[%clk
1:11:23]} 9. h3 {[%clk 0:52:15]} 9... Bh5 {[%clk 1:11:03]} 10. g4 {[%clk
0:46:46]} 10... Bg6 {[%clk 1:10:30]} 11. Bg2 {[%clk 0:37:09]} 11... Bb4 {[%clk
1:07:21]} 12. Nd2 {[%clk 0:27:50]} 12... Bxc3 {[%clk 1:00:39]} 13. bxc3 {[%clk
0:28:15]} 13... Qe6 {[%clk 1:00:30]} 14. O-O {[%clk 0:25:44]} 14... O-O {[%clk
0:59:15]} 15. a4 {[%clk 0:24:20]} 15... Rfd8 {[%clk 0:55:06]} 16. Bf3 {[%clk
0:22:37]} 16... Ne8 {[%clk 0:39:00]} 17. Nc4 {[%clk 0:17:18]} 17... f6 {[%clk
0:37:46]} 18. Bc5 {[%clk 0:16:51]} 18... Nd6 {[%clk 0:33:32]} 19. Nxd6 {[%clk
0:15:08]} 19... cxd6 {[%clk 0:33:57]} 20. Ba3 {[%clk 0:15:27]} 20... Rac8 {[%clk
0:33:44]} 21. Qb5 {[%clk 0:13:39]} 21... b6 {[%clk 0:31:30]} 22. Qd5 {[%clk
0:04:18]} 22... Qxd5 {[%clk 0:30:39]} 23. Rxd5 {[%clk 0:04:43]} 23... Na5 {[%clk
0:30:53]} 24. Kg2 {[%clk 0:01:23]} 24... Nc4 {[%clk 0:29:25]} 25. Bc1 {[%clk
0:01:30]} 25... Bf7 {[%clk 0:28:25]} 26. Rd3 {[%clk 0:01:28]} 26... Be8 {[%clk
0:28:48]} 27. g5 {[%clk 0:00:58]} 27... Bxa4 {[%clk 0:28:15]} 28. Bd1 {[%clk
0:01:00]} 28... Bc6 {[%clk 0:26:55]} 29. f3 {[%clk 0:01:13]} 29... a5 {[%clk
0:24:07]} 30. Be2 {[%clk 0:01:09]} 30... Ba4 {[%clk 0:23:41]} 31. Rd5 {[%clk
0:00:43]} 31... Bxc2 {[%clk 0:23:42]} 32. Bxc4 {[%clk 0:01:07]} 32... Rxc4
{[%clk 0:24:08]} 33. Be3 {[%clk 0:01:00]} 33... Rc6 {[%clk 0:23:20]} 34. gxf6
{[%clk 0:01:24]} 34... gxf6 {[%clk 0:23:41]} 35. Kf2 {[%clk 0:00:44]} 35... Kf7
{[%clk 0:22:10]} 36. Ra1 {[%clk 0:01:02]} 36... a4 {[%clk 0:20:36]} 37. Rb5
{[%clk 0:01:25]} 37... Rb8 {[%clk 0:20:46]} 38. Ke1 {[%clk 0:00:33]} 38... Rxc3
{[%clk 0:18:02]} 39. Kd2 {[%clk 0:00:44]} 39... Rd3+ {[%clk 0:18:11]} 40. Ke2
{[%clk 0:00:37]} 40... Rb3 {[%clk 0:17:13]} 41. Rd5 {[%clk 0:00:40]} 41... Ke6
{[%clk 0:10:45]} 42. Rd2 {[%clk 0:17:13]} 42... Rc3 {[%clk 0:39:34]} 0-1

[Variant "Standard"]
[Site "Europe Echecs"]

[Event "Open Cappelle-la-Grande"]
[Date "2025.02.18"]
[White "Eugene, Floryan"]
[Black "Laignel, Quentin"]
[WhiteElo "2468"]
[BlackElo "2242"]
[Round "5.5.11"]
[Result "1/2-1/2"]
[TimeControl "40/5400+30:1800+30"]

1. e4 {[%clk 1:27:39]} 1... c6 {[%clk 1:30:41]} 2. d4 {[%clk 1:28:01]} 2... d5
{[%clk 1:31:01]} 3. e5 {[%clk 1:28:26]} 3... Bf5 {[%clk 1:30:39]} 4. Nd2 {[%clk
1:28:35]} 4... e6 {[%clk 1:29:20]} 5. Nb3 {[%clk 1:28:57]} 5... Nd7 {[%clk
1:27:19]} 6. h4 {[%clk 1:29:20]} 6... h5 {[%clk 1:24:26]} 7. Be2 {[%clk
1:29:47]} 7... c5 {[%clk 1:12:09]} 8. dxc5 {[%clk 1:24:08]} 8... Nxc5 {[%clk
1:11:31]} 9. Nd4 {[%clk 1:09:48]} 9... Be4 {[%clk 1:07:50]} 10. Ngf3 {[%clk
1:08:04]} 10... Ne7 {[%clk 1:06:10]} 11. Ng5 {[%clk 0:57:36]} 11... Bg6 {[%clk
1:03:19]} 12. Nh3 {[%clk 0:46:49]} 12... Nd7 {[%clk 0:56:05]} 13. Bg5 {[%clk
0:38:09]} 13... Qb6 {[%clk 0:51:03]} 14. Nf4 {[%clk 0:38:03]} 14... Nxe5 {[%clk
0:50:08]} 15. Bb5+ {[%clk 0:34:30]} 15... N7c6 {[%clk 0:50:08]} 16. O-O {[%clk
0:30:02]} 16... Bd6 {[%clk 0:48:17]} 17. Re1 {[%clk 0:27:35]} 17... O-O {[%clk
0:45:14]} 18. Bxc6 {[%clk 0:24:55]} 18... bxc6 {[%clk 0:44:41]} 19. Nxg6 {[%clk
0:24:53]} 19... Nxg6 {[%clk 0:44:25]} 20. Nb3 {[%clk 0:24:16]} 20... a5 {[%clk
0:41:42]} 21. a4 {[%clk 0:24:23]} 21... c5 {[%clk 0:40:19]} 22. Qxh5 {[%clk
0:23:14]} 22... c4 {[%clk 0:39:49]} 23. Be3 {[%clk 0:23:28]} 23... Qd8 {[%clk
0:40:00]} 24. Bg5 {[%clk 0:23:49]} 24... Qb6 {[%clk 0:36:57]} 25. Be3 {[%clk
0:24:15]} 25... Qd8 {[%clk 0:36:33]} 1/2-1/2

[Variant "Standard"]
[Site "Europe Echecs"]

[Event "Open Cappelle-la-Grande"]
[Date "2025.02.18"]
[White "Le Corre, Benjamin"]
[Black "Flom, Gabriel"]
[WhiteElo "2240"]
[BlackElo "2455"]
[Round "5.5.12"]
[Result "0-1"]
[TimeControl "40/5400+30:1800+30"]

1. e4 {[%clk 1:22:30]} 1... c5 {[%clk 1:30:55]} 2. Nf3 {[%clk 1:22:57]} 2... e6
{[%clk 1:31:17]} 3. d4 {[%clk 1:23:11]} 3... cxd4 {[%clk 1:31:36]} 4. Nxd4
{[%clk 1:23:38]} 4... a6 {[%clk 1:31:47]} 5. Bd3 {[%clk 1:24:03]} 5... Bc5
{[%clk 1:32:11]} 6. Nb3 {[%clk 1:22:32]} 6... Be7 {[%clk 1:32:22]} 7. O-O {[%clk
1:18:24]} 7... d6 {[%clk 1:32:41]} 8. a4 {[%clk 1:14:23]} 8... Nf6 {[%clk
1:32:32]} 9. Kh1 {[%clk 1:11:11]} 9... Nc6 {[%clk 1:30:47]} 10. f4 {[%clk
1:09:38]} 10... O-O {[%clk 1:26:48]} 11. Nc3 {[%clk 1:08:30]} 11... e5 {[%clk
1:19:06]} 12. Nd5 {[%clk 0:58:49]} 12... exf4 {[%clk 1:08:20]} 13. Bxf4 {[%clk
0:53:14]} 13... Nxd5 {[%clk 1:08:42]} 14. exd5 {[%clk 0:53:39]} 14... Ne5 {[%clk
1:09:09]} 15. a5 {[%clk 0:48:08]} 15... Bf6 {[%clk 1:06:09]} 16. Be2 {[%clk
0:46:48]} 16... Ng6 {[%clk 1:05:38]} 17. Bc1 {[%clk 0:44:06]} 17... Bd7 {[%clk
1:04:11]} 18. c3 {[%clk 0:38:20]} 18... Re8 {[%clk 1:01:55]} 19. Bd3 {[%clk
0:28:18]} 19... Ne5 {[%clk 0:53:46]} 20. Bf4 {[%clk 0:26:37]} 20... Bg4 {[%clk
0:53:26]} 21. Be2 {[%clk 0:26:47]} 21... Bxe2 {[%clk 0:53:52]} 22. Qxe2 {[%clk
0:27:09]} 22... Ng6 {[%clk 0:54:01]} 23. Qd3 {[%clk 0:23:48]} 23... Nxf4 {[%clk
0:53:42]} 24. Rxf4 {[%clk 0:24:13]} 24... Re5 {[%clk 0:46:36]} 25. Re4 {[%clk
0:20:36]} 25... Qd7 {[%clk 0:40:33]} 26. Rxe5 {[%clk 0:19:44]} 26... Bxe5 {[%clk
0:41:01]} 27. Nd2 {[%clk 0:18:01]} 27... Re8 {[%clk 0:39:14]} 28. Rf1 {[%clk
0:13:47]} 28... g6 {[%clk 0:38:44]} 29. Ne4 {[%clk 0:12:07]} 29... Qd8 {[%clk
0:36:46]} 30. b4 {[%clk 0:08:48]} 30... f5 {[%clk 0:32:32]} 31. Nd2 {[%clk
0:09:11]} 31... Qf6 {[%clk 0:29:56]} 32. c4 {[%clk 0:00:56]} 32... Bc3 {[%clk
0:30:21]} 33. c5 {[%clk 0:01:19]} 33... Bxb4 {[%clk 0:30:38]} 34. c6 {[%clk
0:01:39]} 34... Qc3 {[%clk 0:28:32]} 35. Qxc3 {[%clk 0:00:36]} 35... Bxc3 {[%clk
0:28:58]} 36. Nc4 {[%clk 0:00:32]} 36... bxc6 {[%clk 0:29:23]} 37. dxc6 {[%clk
0:00:32]} 37... Rc8 {[%clk 0:29:48]} 38. Nxd6 {[%clk 0:00:31]} 38... Rxc6 {[%clk
0:30:15]} 39. Nb7 {[%clk 0:00:45]} 39... Rc7 {[%clk 0:29:58]} 40. Nd8 {[%clk
0:00:32]} 40... Bxa5 {[%clk 0:30:09]} 41. h3 {[%clk 0:29:43]} 41... Re7 {[%clk
0:59:05]} 42. Nc6 {[%clk 0:25:42]} 42... Re1 {[%clk 0:59:32]} 43. Rxe1 {[%clk
0:26:06]} 43... Bxe1 {[%clk 0:59:59]} 44. Kg1 {[%clk 0:26:29]} 44... Kf7 {[%clk
0:58:47]} 45. Kf1 {[%clk 0:26:34]} 45... Bg3 {[%clk 0:58:56]} 46. Ke2 {[%clk
0:26:57]} 46... Kf6 {[%clk 0:59:13]} 47. Kf3 {[%clk 0:27:14]} 47... Bd6 {[%clk
0:59:07]} 48. g4 {[%clk 0:25:48]} 48... Ke6 {[%clk 0:57:14]} 49. gxf5+ {[%clk
0:24:58]} 49... gxf5 {[%clk 0:56:20]} 50. h4 {[%clk 0:24:31]} 50... Kd5 {[%clk
0:56:18]} 51. Na5 {[%clk 0:24:40]} 51... Bc7 {[%clk 0:56:38]} 52. Nb3 {[%clk
0:24:56]} 52... a5 {[%clk 0:57:03]} 53. h5 {[%clk 0:21:57]} 53... a4 {[%clk
0:57:24]} 54. Na1 {[%clk 0:22:02]} 54... a3 {[%clk 0:57:02]} 0-1

[Variant "Standard"]
[Site "Europe Echecs"]

[Event "Open Cappelle-la-Grande"]
[Date "2025.02.18"]
[White "Ringuet, Noe"]
[Black "Prraneeth Vuppala"]
[WhiteElo "2239"]
[BlackElo "2442"]
[Round "5.5.13"]
[Result "1-0"]
[TimeControl "40/5400+30:1800+30"]

1. d4 {[%clk 1:28:52]} 1... d5 {[%clk 1:30:36]} 2. Bf4 {[%clk 1:29:02]} 2... e6
{[%clk 1:30:28]} 3. e3 {[%clk 1:29:04]} 3... c5 {[%clk 1:29:24]} 4. c3 {[%clk
1:26:08]} 4... Nc6 {[%clk 1:29:41]} 5. Nd2 {[%clk 1:26:22]} 5... Bd6 {[%clk
1:29:04]} 6. Bxd6 {[%clk 1:21:19]} 6... Qxd6 {[%clk 1:29:26]} 7. Qg4 {[%clk
1:21:44]} 7... Kf8 {[%clk 1:26:02]} 8. Ngf3 {[%clk 1:19:50]} 8... cxd4 {[%clk
1:18:56]} 9. exd4 {[%clk 1:19:34]} 9... Nh6 {[%clk 1:15:23]} 10. Qh5 {[%clk
1:16:20]} 10... Nf5 {[%clk 1:10:20]} 11. Bd3 {[%clk 1:10:57]} 11... g6 {[%clk
1:09:29]} 12. Qg5 {[%clk 1:11:09]} 12... Kg7 {[%clk 1:09:33]} 13. Bxf5 {[%clk
1:10:10]} 13... exf5 {[%clk 1:09:54]} 14. O-O {[%clk 1:04:30]} 14... f6 {[%clk
1:03:30]} 15. Qe3 {[%clk 0:59:13]} 15... f4 {[%clk 1:03:21]} 16. Qe2 {[%clk
0:58:32]} 16... Bd7 {[%clk 0:57:06]} 17. Rfe1 {[%clk 0:55:50]} 17... a6 {[%clk
0:51:31]} 18. a4 {[%clk 0:40:51]} 18... Rhe8 {[%clk 0:43:34]} 19. Qf1 {[%clk
0:37:46]} 19... Ne7 {[%clk 0:40:49]} 20. Qd3 {[%clk 0:30:35]} 20... Nf5 {[%clk
0:39:27]} 21. a5 {[%clk 0:29:53]} 21... Qc7 {[%clk 0:34:50]} 22. Nb3 {[%clk
0:27:40]} 22... Nd6 {[%clk 0:33:56]} 23. Nc5 {[%clk 0:25:37]} 23... Bf5 {[%clk
0:34:00]} 24. Qd1 {[%clk 0:24:59]} 24... Ne4 {[%clk 0:30:07]} 25. Qb3 {[%clk
0:17:59]} 25... Qc6 {[%clk 0:09:01]} 26. Nxe4 {[%clk 0:11:14]} 26... dxe4 {[%clk
0:04:41]} 27. d5 {[%clk 0:11:39]} 27... Qd7 {[%clk 0:04:30]} 28. Nd4 {[%clk
0:11:52]} 28... f3 {[%clk 0:03:50]} 29. Ra4 {[%clk 0:08:01]} 29... Bh3 {[%clk
0:02:18]} 30. Rb4 {[%clk 0:05:46]} 30... Kh6 {[%clk 0:02:11]} 31. Rxb7 {[%clk
0:05:40]} 31... Qg4 {[%clk 0:02:17]} 32. g3 {[%clk 0:06:04]} 32... Bf1 {[%clk
0:00:40]} 33. Nc2 {[%clk 0:06:19]} 33... e3 {[%clk 0:00:36]} 34. Rb4 {[%clk
0:05:52]} 34... exf2+ {[%clk 0:00:36]} 35. Kxf2 {[%clk 0:06:21]} 35... Qg5
{[%clk 0:00:52]} 36. Rh4+ {[%clk 0:04:16]} 36... Kg7 {[%clk 0:01:21]} 37. Qb7+
{[%clk 0:02:34]} 37... Kf8 {[%clk 0:01:49]} 38. Ne3 {[%clk 0:02:03]} 38... Be2
{[%clk 0:02:01]} 39. Qb4+ {[%clk 0:00:44]} 39... Kg8 {[%clk 0:02:10]} 40. Qf4
{[%clk 0:00:32]} 40... Rab8 {[%clk 0:00:54]} 41. b4 {[%clk 0:28:51]} 41... Qe5
{[%clk 0:28:03]} 42. Qd4 {[%clk 0:17:42]} 42... Qd6 {[%clk 0:23:51]} 43. Ng4
{[%clk 0:16:44]} 43... Rf8 {[%clk 0:19:27]} 44. Qa7 {[%clk 0:16:21]} 44... h5
{[%clk 0:19:45]} 45. Nh6+ {[%clk 0:16:36]} 45... Kh8 {[%clk 0:20:13]} 46. Nf5
{[%clk 0:14:59]} 1-0

[Variant "Standard"]
[Site "Europe Echecs"]

[Event "Open Cappelle-la-Grande"]
[Date "2025.02.18"]
[White "Duboue, Peio"]
[Black "Mueer, Sebastian"]
[WhiteElo "2440"]
[BlackElo "2219"]
[Round "5.5.14"]
[Result "1-0"]
[TimeControl "40/5400+30:1800+30"]

1. e4 {[%clk 1:30:39]} 1... c5 {[%clk 1:26:15]} 2. Nf3 {[%clk 1:31:03]} 2... e6
{[%clk 1:26:37]} 3. c3 {[%clk 1:31:30]} 3... d5 {[%clk 1:26:41]} 4. exd5 {[%clk
1:31:55]} 4... Qxd5 {[%clk 1:27:02]} 5. d4 {[%clk 1:32:22]} 5... Nf6 {[%clk
1:27:17]} 6. Na3 {[%clk 1:32:48]} 6... Nc6 {[%clk 1:27:19]} 7. Be3 {[%clk
1:33:02]} 7... cxd4 {[%clk 1:24:58]} 8. Nb5 {[%clk 1:33:24]} 8... Qd7 {[%clk
1:08:14]} 9. Nbxd4 {[%clk 1:33:28]} 9... a6 {[%clk 1:02:03]} 10. Bd3 {[%clk
1:22:22]} 10... Bd6 {[%clk 0:55:51]} 11. O-O {[%clk 1:13:07]} 11... O-O {[%clk
0:50:43]} 12. Nxc6 {[%clk 1:11:35]} 12... Qxc6 {[%clk 0:51:00]} 13. Bd4 {[%clk
1:11:45]} 13... Qc7 {[%clk 0:31:10]} 14. Re1 {[%clk 1:05:54]} 14... b5 {[%clk
0:31:11]} 15. a4 {[%clk 1:02:09]} 15... b4 {[%clk 0:28:42]} 16. cxb4 {[%clk
0:35:23]} 16... Bxb4 {[%clk 0:27:10]} 17. Bxf6 {[%clk 0:34:43]} 17... gxf6
{[%clk 0:25:37]} 18. Re4 {[%clk 0:34:33]} 18... Qa5 {[%clk 0:25:11]} 19. Rg4+
{[%clk 0:29:01]} 19... Kh8 {[%clk 0:25:32]} 20. Qc1 {[%clk 0:28:43]} 20... Bd2
{[%clk 0:15:43]} 21. Nxd2 {[%clk 0:26:59]} 21... Bb7 {[%clk 0:15:43]} 22. Nf3
{[%clk 0:26:55]} 22... Bxf3 {[%clk 0:15:01]} 23. Qh6 {[%clk 0:26:55]} 1-0

[Variant "Standard"]
[Site "Europe Echecs"]

[Event "Open Cappelle-la-Grande"]
[Date "2025.02.18"]
[White "Alashtar, Aasef"]
[Black "Barp, Alberto"]
[WhiteElo "2067"]
[BlackElo "2437"]
[Round "5.5.15"]
[Result "0-1"]
[TimeControl "40/5400+30:1800+30"]

1. b3 {[%clk 1:31:00]} 1... d5 {[%clk 1:29:34]} 2. Bb2 {[%clk 1:31:24]} 2... c5
{[%clk 1:28:20]} 3. e3 {[%clk 1:31:42]} 3... Nf6 {[%clk 1:28:43]} 4. Nf3 {[%clk
1:31:54]} 4... Nc6 {[%clk 1:26:00]} 5. Bb5 {[%clk 1:31:54]} 5... Bd7 {[%clk
1:26:12]} 6. O-O {[%clk 1:26:43]} 6... g6 {[%clk 1:22:49]} 7. Bxc6 {[%clk
1:19:49]} 7... Bxc6 {[%clk 1:21:04]} 8. Ne5 {[%clk 1:18:09]} 8... Qd6 {[%clk
1:18:43]} 9. d4 {[%clk 1:10:21]} 9... Bg7 {[%clk 1:16:21]} 10. Nd2 {[%clk
1:05:56]} 10... O-O {[%clk 1:08:19]} 11. f4 {[%clk 0:56:37]} 11... Rac8 {[%clk
1:03:50]} 12. dxc5 {[%clk 0:47:10]} 12... Qxc5 {[%clk 1:02:43]} 13. Bd4 {[%clk
0:47:28]} 13... Qa5 {[%clk 1:00:20]} 14. c3 {[%clk 0:46:28]} 14... Rfd8 {[%clk
0:54:04]} 15. a4 {[%clk 0:42:18]} 15... Be8 {[%clk 0:47:17]} 16. b4 {[%clk
0:40:58]} 16... Qc7 {[%clk 0:46:52]} 17. Qb3 {[%clk 0:37:57]} 17... Nd7 {[%clk
0:40:21]} 18. Ndf3 {[%clk 0:36:09]} 18... Nf8 {[%clk 0:37:36]} 19. Rfc1 {[%clk
0:21:33]} 19... f6 {[%clk 0:30:29]} 20. Nd3 {[%clk 0:21:39]} 20... Bf7 {[%clk
0:30:42]} 21. a5 {[%clk 0:19:44]} 21... Qb8 {[%clk 0:22:56]} 22. g4 {[%clk
0:16:08]} 22... Qd6 {[%clk 0:17:30]} 23. Qd1 {[%clk 0:14:26]} 23... Nd7 {[%clk
0:14:13]} 24. Bxa7 {[%clk 0:13:11]} 24... e5 {[%clk 0:14:32]} 25. fxe5 {[%clk
0:11:12]} 25... fxe5 {[%clk 0:14:58]} 26. Ng5 {[%clk 0:11:26]} 26... Rf8 {[%clk
0:10:25]} 27. Nxf7 {[%clk 0:08:47]} 27... Rxf7 {[%clk 0:10:51]} 28. Nf2 {[%clk
0:08:29]} 28... Qa6 {[%clk 0:08:45]} 29. Bb6 {[%clk 0:08:29]} 29... Nxb6 {[%clk
0:08:33]} 30. axb6 {[%clk 0:08:34]} 30... Qxb6 {[%clk 0:08:59]} 31. Qxd5 {[%clk
0:05:04]} 31... Bh6 {[%clk 0:09:26]} 32. Rc2 {[%clk 0:03:25]} 32... Bxe3 {[%clk
0:09:03]} 33. Rf1 {[%clk 0:03:01]} 33... Qf6 {[%clk 0:07:43]} 34. Kg2 {[%clk
0:01:24]} 34... Rf8 {[%clk 0:08:03]} 35. Re2 {[%clk 0:01:34]} 35... Qf4 {[%clk
0:02:11]} 36. Rxe3 {[%clk 0:01:25]} 36... Qxe3 {[%clk 0:02:35]} 37. Ne4 {[%clk
0:01:42]} 37... Qe2+ {[%clk 0:02:13]} 38. Rf2 {[%clk 0:02:10]} 38... Qxg4+
{[%clk 0:02:33]} 39. Kh1 {[%clk 0:01:30]} 39... Qh4 {[%clk 0:01:39]} 40. Nf6+
{[%clk 0:00:38]} 40... Kh8 {[%clk 0:01:12]} 41. Ne4 {[%clk 0:28:10]} 41... Kg8
42. Rxf7 {[%clk 0:28:10]} 42... Rxf7 {[%clk 0:31:12]} 43. Nd6 Qe1+ 44. Kg2
{[%clk 0:28:10]} 44... Qe2+ {[%clk 0:31:12]} 45. Kg3 {[%clk 0:28:10]} 45... Qf2+
{[%clk 0:31:12]} 46. Kg4 Qf4+ 47. Kh3 Qf3+ 0-1

[Variant "Standard"]
[Site "Europe Echecs"]